[Event "55th Biel Festival MTO 2022"]
[Site "Biel"]
[Date "2022.07.21"]
[Round "8.6"]
[White "Iturrizaga Bonelli Eduardo"]
[Black "Pranav Anand"]
[Result "1/2-1/2"]
[ECO "A11"]
[WhiteElo "2619"]
[BlackElo "2463"]
[Annotator "ChessBase"]
[PlyCount "73"]
[EventDate "2022.07.13"]
[EventType "swiss"]
[EventCountry "SUI"]
[SourceTitle "playchess.com"]
[Source "ChessBase"]
[SourceQuality "1"]
[TimeControl "40/5400+30:1800+30"]

1. c4 {[%emt 0:07:10]} e6 {[%emt 0:00:10]} 2. Nf3 {[%emt 0:01:02]} d5 {[%emt 0:00:08]} 3. e3 {[%emt 0:00:04]} Nf6 {[%emt 0:00:24]} 4. Nc3 {[%emt 0:01:19]} c6 {[%emt 0:01:02]} 5. b3 {[%emt 0:00:51]} Nbd7 {[%emt 0:01:27]} 6. Bb2 {[%emt 0:00:12]} Bd6 {[%emt 0:03:37]} 7. Qc2 {[%emt 0:00:45]} Qe7 {[%emt 0:04:28]} 8. Be2 {[%emt 0:03:19]} O-O {[%emt 0:02:28]} 9. O-O {[%emt 0:09:35]} b6 {[%emt 0:10:58]} 10. Nd4 {[%emt 0:19:33]} Bb7 {[%emt 0:01:25]} 11. cxd5 {[%emt 0:00:29]} cxd5 {[%emt 0:02:55]} 12. Ndb5 {[%emt 0:00:09]} Rfc8 {[%emt 0:03:10]} 13. Nxd6 {[%emt 0:02:47]} Qxd6 {[%emt 0:00:01]} 14. d4 {[%emt 0:02:02]} Ne4 {[%emt 0:07:31]} 15. Rfc1 {[%emt 0:06:28]} Nxc3 {[%emt 0:11:50]} 16. Bxc3 {[%emt 0:00:12]} Nf6 {[%emt 0:02:56]} 17. Qb2 {[%emt 0:01:40]} Qd7 {[%emt 0:02:16]} 18. Be1 {[%emt 0:15:17]} Ne4 {[%emt 0:04:45]} 19. f3 {[%emt 0:01:40]} Nd6 {[%emt 0:00:05]} 20. g4 {[%emt 0:00:10]} h5 {[%emt 0:08:15]} 21. h3 {[%emt 0:02:05]} hxg4 {[%emt 0:00:30]} 22. hxg4 {[%emt 0:00:05]} f5 {[%emt 0:00:45]} 23. Bg3 {[%emt 0:09:04]} fxg4 {[%emt 0:01:11]} 24. fxg4 {[%emt 0:00:04]} Ne4 {[%emt 0:01:01]} 25. Be5 {[%emt 0:02:17]} Qe7 {[%emt 0:04:13]} 26. Kg2 {[%emt 0:06:12]} Qh4 {[%emt 0:01:52]} 27. Bf3 {[%emt 0:00:28]} Ba6 {[%emt 0:00:52]} 28. Rh1 {[%emt 0:02:08]} Qg5 {[%emt 0:00:05]} 29. Bf4 {[%emt 0:00:19]} Qg6 {[%emt 0:00:05]} 30. Rac1 {[%emt 0:03:13]} Ng5 {[%emt 0:05:13]} 31. Bxg5 {[%emt 0:01:32]} Qxg5 {[%emt 0:00:09]} 32. Qd2 {[%emt 0:01:37]} Rxc1 {[%emt 0:00:44]} 33. Rxc1 {[%emt 0:00:05]} Rf8 {[%emt 0:00:05]} 34. Be2 {[%emt 0:03:03]} Rf6 {[%emt 0:08:54]} 35. Rf1 {[%emt 0:00:32]} Bxe2 {[%emt 0:03:23]} 36. Qxe2 {[%emt 0:00:06]} Qg6 {[%emt 0:00:09]} 37. Kg3 {[%emt 0:00:42]} 1/2-1/2

[Event "55th Biel Festival MTO 2022"]
[Site "Biel"]
[Date "2022.07.21"]
[Round "8.7"]
[White "Mendonca Leon Luke"]
[Black "Ganguly Surya Shekhar"]
[Result "1-0"]
[ECO "D35"]
[WhiteElo "2567"]
[BlackElo "2608"]
[Annotator "ChessBase"]
[PlyCount "57"]
[EventDate "2022.07.13"]
[EventType "swiss"]
[EventCountry "SUI"]
[SourceTitle "playchess.com"]
[Source "ChessBase"]
[SourceQuality "1"]
[TimeControl "40/5400+30:1800+30"]

1. d4 {[%emt 0:00:04]} Nf6 {[%emt 0:00:07]} 2. c4 {[%emt 0:00:36]} e6 {[%emt 0:00:07]} 3. Bf4 {[%emt 0:00:05]} d5 {[%emt 0:00:43]} 4. cxd5 {[%emt 0:00:06]} exd5 {[%emt 0:01:18]} 5. e3 {[%emt 0:00:17]} Bb4+ {[%emt 0:11:59]} 6. Nc3 {[%emt 0:02:57]} O-O {[%emt 0:00:34]} 7. Bd3 {[%emt 0:11:33]} c5 {[%emt 0:00:11]} 8. Nge2 {[%emt 0:04:27]} Nc6 {[%emt 0:08:48]} 9. dxc5 {[%emt 0:03:42]} Bxc5 {[%emt 0:00:10]} 10. O-O {[%emt 0:01:02]} a6 {[%emt 0:00:17]} 11. Rc1 {[%emt 0:02:12]} Ba7 {[%emt 0:02:10]} 12. Bg5 {[%emt 0:26:40]} h6 {[%emt 0:01:11]} 13. Bxf6 {[%emt 0:07:19]} Qxf6 {[%emt 0:01:01]} 14. Nxd5 {[%emt 0:08:27]} Qxb2 {[%emt 0:00:09]} 15. Bc4 {[%emt 0:01:49]} Bg4 {[%emt 0:15:04]} 16. h3 {[%emt 0:04:50]} Bxe2 {[%emt 0:13:10]} 17. Qxe2 {[%emt 0:00:20]} Qe5 {[%emt 0:00:26]} 18. a4 {[%emt 0:05:58]} Rad8 {[%emt 0:02:39]} 19. Rfd1 {[%emt 0:03:11]} Kh8 {[%emt 0:09:39]} 20. Rb1 {[%emt 0:08:01]} Bb8 {[%emt 0:05:05]} 21. f4 {[%emt 0:03:24]} Qe4 {[%emt 0:00:05]} 22. Qd3 {[%emt 0:02:10]} Rfe8 {[%emt 0:02:05]} 23. Qxe4 {[%emt 0:01:00]} Rxe4 {[%emt 0:00:02]} 24. Be2 {[%emt 0:00:53]} Na5 {[%emt 0:11:23]} 25. Bf3 {[%emt 0:00:37]} Rxa4 {[%emt 0:01:19]} 26. Nb6 {[%emt 0:00:42]} Rxd1+ {[%emt 0:00:01]} 27. Rxd1 {[%emt 0:00:21]} Rb4 {[%emt 0:00:01]} 28. Rd8+ {[%emt 0:00:16]} Kh7 {[%emt 0:00:02]} 29. Nd5 {[%emt 0:00:32]} 1-0

[Event "55th Biel Festival MTO 2022"]
[Site "Biel"]
[Date "2022.07.21"]
[Round "8.8"]
[White "Puranik Abhimanyu"]
[Black "Iniyan P"]
[Result "1-0"]
[ECO "C65"]
[WhiteElo "2612"]
[BlackElo "2533"]
[Annotator "RC"]
[PlyCount "71"]
[EventDate "2022.07.13"]
[EventType "swiss"]
[EventCountry "SUI"]
[SourceTitle "playchess.com"]
[Source "ChessBase"]
[SourceQuality "1"]
[TimeControl "40/5400+30:1800+30"]

1. e4 {[%emt 0:01:13]} e5 {[%emt 0:03:18]} 2. Nf3 {[%emt 0:00:06]} Nc6 {[%emt 0:00:14]} 3. Bb5 {[%emt 0:00:07]} Nf6 {[%emt 0:00:04]} 4. d3 {[%emt 0:00:11]} Bc5 {[%emt 0:00:06]} 5. c3 {[%emt 0:00:38]} d6 {[%emt 0:00:56]} 6. O-O {[%emt 0:00:36]} O-O {[%emt 0:00:08]} 7. Nbd2 {[%emt 0:00:37]} a6 {[%emt 0:00:10]} 8. Ba4 {[%emt 0:00:20]} Ba7 {[%emt 0:00:06]} 9. h3 {[%emt 0:04:02]} Nh5 {[%emt 0:00:06]} 10. Nh2 {[%emt 0:12:24]} Ng3 {[%emt 0:30:32]} 11. Re1 {[%emt 0:00:59]} Qh4 {[%emt 0:00:05]} 12. d4 {[%emt 0:06:20]} Nxd4 {[%emt 0:00:06]} 13. cxd4 {[%emt 0:00:11]} Bxd4 {[%emt 0:00:04]} 14. Nhf3 {[%emt 0:06:53]} Bxf2+ {[%emt 0:00:21]} 15. Kxf2 {[%emt 0:00:07]} Nxe4+ {[%emt 0:00:04]} 16. Kg1 {[%emt 0:00:50]} Qf2+ {[%emt 0:00:16]} 17. Kh1 {[%emt 0:00:31]} Bxh3 {[%emt 0:08:48]} 18. Rg1 {[%emt 0:00:13]} Ng3+ {[%emt 0:05:25]} 19. Kh2 {[%emt 0:00:06]} Be6 {[%emt 0:01:20]} 20. Qe1 {[%emt 0:01:11]} Qxe1 {[%emt 0:00:03]} 21. Rxe1 {[%emt 0:00:03]} Nf5 {[%emt 0:00:08]} 22. Bc2 {[%emt 0:03:35]} f6 {[%emt 0:01:33]} 23. Ne4 {[%emt 0:01:50]} b6 {[%emt 0:00:16]} 24. Ng3 {[%emt 0:01:52]} Nxg3 {[%emt 0:04:35]} 25. Kxg3 {[%emt 0:00:02]} c5 {[%emt 0:00:11]} 26. a4 {[%emt 0:04:19]} h6 {[%emt 0:03:36]} 27. Bd2 {[%emt 0:01:27]} g5 {[%emt 0:04:36]} 28. a5 {[%emt 0:03:58]} Rab8 {[%emt 0:07:34]} 29. Bc3 {[%emt 0:05:31]} b5 {[%emt 0:02:34]} 30. Rad1 {[%emt 0:01:52]} Rfd8 {[%emt 0:02:58]} 31. b4 {[%emt 0:03:41]} Rbc8 {[%emt 0:00:57]} 32. Bb1 {[%emt 0:00:12]} d5 {[%emt 0:13:49]} 33. bxc5 {[%emt 0:02:36]} Rxc5 {[%emt 0:01:27]} 34. Bb4 {[%emt 0:01:48]} Rc7 {[%emt 0:00:44]} 35. Nd4 {[%emt 0:00:42]} Kf7 {[%emt 0:00:36]} 36. Bg6+ {[%emt 0:00:22]} 1-0

[Event "55th Biel Festival MTO 2022"]
[Site "Biel"]
[Date "2022.07.21"]
[Round "8.9"]
[White "Yu Yangyi"]
[Black "Prraneeth Vuppala"]
[Result "1/2-1/2"]
[ECO "D27"]
[WhiteElo "2720"]
[BlackElo "2457"]
[Annotator "TA"]
[PlyCount "89"]
[EventDate "2022.07.13"]
[EventType "swiss"]
[EventCountry "SUI"]
[SourceTitle "playchess.com"]
[Source "ChessBase"]
[SourceQuality "1"]
[TimeControl "40/5400+30:1800+30"]

{[%evp 19,89,0,0,0,0,-4,0,0,0,11,7,0,0,13,12,11,0,2,0,0,0,0,0,0,0,0,0,0,0,0,50,51,76,79,87,78,95,54,81,79,79,73,129,122,158,152,161,140,151,126,111,108,108,106,157,80,79,81,79,8,8,8,69,0,476,0,0,0,0,0,0,0]} 1. Nf3 {[%emt 0:00:04]} d5 {[%emt 0:00:42]} 2. c4 {[%emt 0:00:11]} e6 {[%emt 0:01:53]} 3. e3 {[%emt 0:00:43]} Nf6 {[%emt 0:01:44]} 4. Nc3 {[%emt 0:00:11]} c5 {[%emt 0:01:10]} 5. d4 {[%emt 0:02:37]} Nc6 {[%emt 0:00:40]} 6. a3 {[%emt 0:01:22]} dxc4 {[%emt 0:05:34]} 7. Bxc4 {[%emt 0:02:55]} a6 {[%emt 0:00:17]} 8. Bd3 {[%emt 0:04:10][%cal Bc4d3,Bd3b1,Bb1a2][%mdl 32]} cxd4 {[%emt 0:14:09]} 9. exd4 {[%emt 0:00:17]} Be7 {[%emt 0:02:37]} 10. O-O {[%emt 0:02:50]} O-O {[%emt 0:00:55]} 11. Bb1 {[%emt 0:05:06] D27: Queen's Gambit Accepted: Classical main line: 7 e4!? and 7 a4.} b5 {[%emt 0:09:23]} 12. Qd3 {[%emt 0:00:33]} Bb7 {[%emt 0:03:14]} 13. Bg5 {[%emt 0:01:18]} g6 {[%emt 0:02:14]} 14. Ba2 {[%emt 0:00:28] [#]} Ng4 $146 {[%emt 0:09:03]} ({Predecessor:} 14... b4 15. Na4 bxa3 16. bxa3 Na5 17. Ne5 Be4 18. Qd2 Nc6 19. Rfd1 Rc8 {½-½ (30) Cech,P (2355)-Seifert,V (2359) Germany 2016}) 15. h4 {[%emt 0:11:34]} Nce5 {[%emt 0:09:29]} 16. Nxe5 {[%emt 0:00:56]} Nxe5 {[%emt 0:00:08][%mdl 64] Pin} 17. Qe3 {[%emt 0:00:40]} Nc4 {[%emt 0:04:57]} 18. Bxc4 {[%emt 0:00:26]} bxc4 {[%emt 0:00:29]} 19. Rad1 {[%emt 0:00:43]} Re8 {[%emt 0:07:53]} 20. Rfe1 {[%emt 0:00:59][%cal Bf1e1,Be1e5,Be5g5][%mdl 32]} Bd5 {[%emt 0:03:24]} 21. Qg3 {[%emt 0:05:10]} h5 {[%emt 0:17:04]} 22. Re5 {[%emt 0:04:57]} Bxg5 {[%emt 0:02:06]} 23. Rxg5 {[%emt 0:00:25]} Qb8 {[%emt 0:01:16]} 24. Re5 {[%emt 0:06:47]} Kg7 {[%emt 0:00:37]} (24... Rd8 $11) 25. f4 $1 $14 {[%emt 0:01:10]} Bc6 {[%emt 0:01:22]} 26. Rd2 $1 {[%emt 0:02:11]} Kh7 {[%emt 0:00:36]} 27. Rc5 {[%emt 0:01:29][%csl LRc4,LRc6]} Bd5 {[%emt 0:00:20]} 28. Qg5 {[%emt 0:01:23]} Qd8 {[%emt 0:00:36]} 29. Nxd5 {[%emt 0:00:32]} exd5 {[%emt 0:00:09]} 30. Rxd5 {[%emt 0:00:04]} Qb6 {[%emt 0:00:41] [#]} (30... Qc7 $142) 31. f5 $1 $36 {[%emt 0:01:56][%mdl 2048] White has strong initiative.} Re1+ {[%emt 0:00:28] [#]} 32. Kf2 $1 {[%emt 0:00:24]} Rae8 {[%emt 0:00:46]} 33. fxg6+ {[%emt 0:00:51]} fxg6 {[%emt 0:00:18]} 34. Rd7+ {[%emt 0:00:06]} Kg8 {[%emt 0:00:06]} 35. Qd5+ {[%emt 0:00:10]} ({Don't play} 35. Kg3 $6 R1e4 36. Kh2 Qc6 37. Qd5+ Qxd5 38. Rxd5 Rxh4+ 39. Kg1 Re1+ 40. Kf2 Ree4 $11) 35... Qe6 {[%emt 0:00:52]} (35... Kh8 36. Qf7 R8e7 37. Rxe7 $18) 36. Qxe6+ {[%emt 0:00:26]} R1xe6 {[%emt 0:00:07][%cal Be1e6,Be6f6,Bf6f4][%mdl 4128] Endgame KRR-KRR} 37. d5 {[%emt 0:01:51]} (37. Rc2 $142) 37... Rf6+ {[%emt 0:00:06]} 38. Kg1 {[%emt 0:00:38] Rc7 is the strong threat.} Rf4 {[%emt 0:01:14]} 39. d6 {[%emt 0:04:11]} ({Better is} 39. g3 $16 Rf3 40. Kh2) 39... Re1+ $1 $11 {[%emt 0:00:41]} 40. Kh2 {[%emt 0:00:01] Threatens to win with Rd8+.} Ref1 {[%emt 0:00:34]} ({Black should play} 40... Rxh4+ $11 41. Kg3 Rg4+ 42. Kf2 Ree4) 41. Kh3 {[%emt 0:44:12] White is more active.} (41. g3 $14 R4f2+ 42. Rxf2 Rxf2+ 43. Kh3) 41... Rh1+ {[%emt 0:03:13]} 42. Kg3 {[%emt 0:00:00]} Rhf1 {[%emt 0:00:24] The position is equal.} 43. Kh3 {[%emt 0:00:00] aiming for Rd8+.} Rh1+ {[%emt 0:00:08]} 44. Kg3 {[%emt 0:00:00]} Rhf1 {[%emt 0:00:08]} 45. Kh3 {[%emt 0:00:00] Weighted Error Value: White=0.10 (very precise) /Black=0.10 (very precise)} 1/2-1/2

[Event "55th Biel Festival MTO 2022"]
[Site "Biel"]
[Date "2022.07.21"]
[Round "8.10"]
[White "Mohammad Nubairshah Shaikh"]
[Black "Martirosyan, Haik M."]
[Result "0-1"]
[ECO "A04"]
[WhiteElo "2445"]
[BlackElo "2672"]
[Annotator "RC"]
[PlyCount "118"]
[EventDate "2022.07.13"]
[EventType "swiss"]
[EventCountry "SUI"]
[SourceTitle "playchess.com"]
[Source "ChessBase"]
[SourceQuality "1"]
[TimeControl "40/5400+30:1800+30"]

1. Nf3 {[%emt 0:02:11]} c5 {[%emt 0:01:23]} 2. g3 {[%emt 0:00:29]} Nc6 {[%emt 0:00:35]} 3. Bg2 {[%emt 0:01:02]} g6 {[%emt 0:00:58]} 4. c3 {[%emt 0:05:48]} e5 {[%emt 0:02:53]} 5. e4 {[%emt 0:00:32]} Bg7 {[%emt 0:00:46]} 6. O-O {[%emt 0:00:19]} Nge7 {[%emt 0:01:11]} 7. Na3 {[%emt 0:01:20]} O-O {[%emt 0:01:26]} 8. d3 {[%emt 0:00:43]} d5 {[%emt 0:05:00]} 9. exd5 {[%emt 0:01:27]} Nxd5 {[%emt 0:00:20]} 10. Re1 {[%emt 0:00:03]} h6 {[%emt 0:03:23]} 11. Qb3 {[%emt 0:03:51]} Nc7 {[%emt 0:04:05]} 12. Be3 {[%emt 0:11:40]} b6 {[%emt 0:02:44]} 13. Rad1 {[%emt 0:01:40]} Be6 {[%emt 0:03:11]} 14. Qa4 {[%emt 0:08:17]} Bd7 {[%emt 0:02:12]} 15. Qc2 {[%emt 0:06:55]} Nd5 {[%emt 0:07:33]} 16. Bc1 {[%emt 0:02:42]} Re8 {[%emt 0:02:28]} 17. Nc4 {[%emt 0:02:25]} Bf5 {[%emt 0:05:03]} 18. h3 {[%emt 0:08:13]} Qc7 {[%emt 0:06:16]} 19. Nh2 {[%emt 0:19:52]} Qd7 {[%emt 0:04:52]} 20. Qa4 {[%emt 0:06:46]} Be6 {[%emt 0:03:16]} 21. Ng4 {[%emt 0:08:28]} h5 {[%emt 0:04:22]} 22. Nge3 {[%emt 0:00:05]} Nde7 {[%emt 0:01:28]} 23. h4 {[%emt 0:02:39]} Rad8 {[%emt 0:01:44]} 24. a3 {[%emt 0:03:04]} Rb8 {[%emt 0:08:09]} 25. Qb5 {[%emt 0:00:44]} Qc7 {[%emt 0:04:57]} 26. a4 {[%emt 0:01:24]} Na5 {[%emt 0:02:51]} 27. Nxa5 {[%emt 0:00:40]} bxa5 {[%emt 0:00:07]} 28. Qa6 {[%emt 0:00:03]} Bb3 {[%emt 0:00:28]} 29. Nc4 {[%emt 0:00:21]} Bxa4 {[%emt 0:00:47]} 30. Qxa5 {[%emt 0:01:04]} Qxa5 {[%emt 0:01:11]} 31. Nxa5 {[%emt 0:00:02]} Bxd1 {[%emt 0:00:12]} 32. Rxd1 {[%emt 0:00:02]} Red8 {[%emt 0:02:46]} 33. Kf1 {[%emt 0:00:51]} Rb5 {[%emt 0:01:35]} 34. Nc4 {[%emt 0:00:35]} Nf5 {[%emt 0:00:05]} 35. Bc6 {[%emt 0:01:03]} Rbb8 {[%emt 0:00:17]} 36. Ke2 {[%emt 0:00:29]} Nd6 {[%emt 0:00:38]} 37. Na5 {[%emt 0:00:23]} Rb6 {[%emt 0:01:36]} 38. Bg2 {[%emt 0:00:44]} Rb5 {[%emt 0:02:51]} 39. Nc6 {[%emt 0:00:19]} Rd7 {[%emt 0:00:02]} 40. Re1 {[%emt 0:00:42]} e4 {[%emt 0:07:15]} 41. Rd1 {[%emt 0:06:45]} Rc7 {[%emt 0:05:15]} 42. dxe4 {[%emt 0:00:57]} Nc4 {[%emt 0:00:20]} 43. e5 {[%emt 0:01:36]} Rb6 {[%emt 0:03:31]} 44. Rd8+ {[%emt 0:02:45]} Kh7 {[%emt 0:00:12]} 45. f4 {[%emt 0:02:42]} Nxb2 {[%emt 0:05:46]} 46. Nb8 {[%emt 0:02:54]} Na4 {[%emt 0:01:55]} 47. Kd3 {[%emt 0:02:12]} Rb3 {[%emt 0:05:47]} 48. Bd2 {[%emt 0:00:17]} Rb2 {[%emt 0:00:43]} 49. Na6 {[%emt 0:05:40]} c4+ {[%emt 0:00:38]} 50. Ke3 {[%emt 0:00:05]} Re7 {[%emt 0:00:29]} 51. Nb4 {[%emt 0:02:10]} Nxc3 {[%emt 0:00:54]} 52. Nc6 {[%emt 0:04:21]} Rc7 {[%emt 0:01:24]} 53. Bf3 {[%emt 0:00:46]} Nb1 {[%emt 0:03:38]} 54. Ba5 {[%emt 0:00:19]} Rb3+ {[%emt 0:02:25]} 55. Ke2 {[%emt 0:00:28]} c3 {[%emt 0:01:17]} 56. Kd1 {[%emt 0:03:21]} Na3 {[%emt 0:01:02]} 57. Be4 {[%emt 0:00:59]} Rxc6 {[%emt 0:00:19]} 58. Bxc6 {[%emt 0:00:03]} c2+ {[%emt 0:00:13]} 59. Kd2 {[%emt 0:00:13]} Rb1 {[%emt 0:00:12]} 0-1

[Event "55th Biel Festival MTO 2022"]
[Site "Biel"]
[Date "2022.07.21"]
[Round "8.11"]
[White "Licznerski, Lukasz"]
[Black "Lagarde, Maxime"]
[Result "1/2-1/2"]
[ECO "B58"]
[WhiteElo "2451"]
[BlackElo "2631"]
[Annotator "RC"]
[PlyCount "81"]
[EventDate "2022.07.13"]
[EventType "swiss"]
[EventCountry "SUI"]
[SourceTitle "playchess.com"]
[Source "ChessBase"]
[SourceQuality "1"]
[TimeControl "40/5400+30:1800+30"]

1. e4 {[%emt 0:00:11]} c5 {[%emt 0:00:37]} 2. Nf3 {[%emt 0:00:04]} Nc6 {[%emt 0:00:33]} 3. d4 {[%emt 0:00:58]} cxd4 {[%emt 0:00:06]} 4. Nxd4 {[%emt 0:00:03]} Nf6 {[%emt 0:00:07]} 5. Nc3 {[%emt 0:00:04]} d6 {[%emt 0:00:34]} 6. Be2 {[%emt 0:00:35]} e5 {[%emt 0:01:39]} 7. Nf3 {[%emt 0:00:05]} h6 {[%emt 0:00:13]} 8. O-O {[%emt 0:00:04]} Be7 {[%emt 0:00:18]} 9. Re1 {[%emt 0:00:20]} Be6 {[%emt 0:03:57]} 10. Bf1 {[%emt 0:04:31]} Bg4 {[%emt 0:00:15]} 11. h3 {[%emt 0:06:15]} Bh5 {[%emt 0:00:04]} 12. g4 {[%emt 0:05:09]} Bg6 {[%emt 0:00:05]} 13. Nh4 {[%emt 0:01:06]} O-O {[%emt 0:00:06]} 14. Bc4 {[%emt 0:18:05]} Kh8 {[%emt 0:00:05]} 15. Nf5 {[%emt 0:00:17]} Bxf5 {[%emt 0:00:19]} 16. exf5 {[%emt 0:06:06]} Rc8 {[%emt 0:10:16]} 17. Bd5 {[%emt 0:11:19]} Qb6 {[%emt 0:21:20]} 18. Rb1 {[%emt 0:07:18]} Nd4 {[%emt 0:04:01]} 19. Be3 {[%emt 0:01:23]} Bd8 {[%emt 0:05:30]} 20. Bg2 {[%emt 0:00:44]} Rc4 {[%emt 0:05:57]} 21. Nd5 {[%emt 0:03:53]} Nxd5 {[%emt 0:08:49]} 22. Bxd5 {[%emt 0:00:07]} Rc5 {[%emt 0:00:35]} 23. Bg2 {[%emt 0:00:49]} Bg5 {[%emt 0:00:22]} 24. c3 {[%emt 0:00:43]} Bxe3 {[%emt 0:00:43]} 25. Rxe3 {[%emt 0:00:02]} Nc6 {[%emt 0:00:19]} 26. Rd3 {[%emt 0:02:04]} Re8 {[%emt 0:04:00]} 27. b4 {[%emt 0:08:40]} Rc4 {[%emt 0:00:06]} 28. b5 {[%emt 0:00:45]} Ne7 {[%emt 0:04:00]} 29. Rxd6 {[%emt 0:00:06]} Qc5 {[%emt 0:04:24]} 30. Rd8 {[%emt 0:02:47]} Rxd8 {[%emt 0:00:19]} 31. Qxd8+ {[%emt 0:00:02]} Kh7 {[%emt 0:00:06]} 32. f6 {[%emt 0:12:23]} Ng6 {[%emt 0:02:26]} 33. Qd5 {[%emt 0:08:27]} Qxd5 {[%emt 0:01:20]} 34. Bxd5 {[%emt 0:00:01]} Rxc3 {[%emt 0:00:12]} 35. fxg7 {[%emt 0:01:35]} Nf4 {[%emt 0:03:01]} 36. Bxb7 {[%emt 0:00:20]} Nxh3+ {[%emt 0:00:12]} 37. Kf1 {[%emt 0:00:22]} Kxg7 {[%emt 0:00:10]} 38. a4 {[%emt 0:01:12]} Ra3 {[%emt 0:01:37]} 39. Bc6 {[%emt 0:00:30]} Ra2 {[%emt 0:01:24]} 40. f3 {[%emt 0:00:21]} Nf4 {[%emt 0:07:52]} 41. b6 {[%emt 0:05:04]} 1/2-1/2

[Event "55th Biel Festival MTO 2022"]
[Site "Biel"]
[Date "2022.07.21"]
[Round "8.12"]
[White "Panjwani, Raja"]
[Black "Banusz, Tamas"]
[Result "1/2-1/2"]
[ECO "D12"]
[WhiteElo "2450"]
[BlackElo "2611"]
[Annotator "ChessBase"]
[PlyCount "100"]
[EventDate "2022.07.13"]
[EventType "swiss"]
[EventCountry "SUI"]
[SourceTitle "playchess.com"]
[Source "ChessBase"]
[SourceQuality "1"]
[TimeControl "40/5400+30:1800+30"]

1. d4 {[%emt 0:00:04]} d5 {[%emt 0:00:05]} 2. c4 {[%emt 0:00:07]} c6 {[%emt 0:00:09]} 3. Nf3 {[%emt 0:00:10]} Nf6 {[%emt 0:00:06]} 4. e3 {[%emt 0:00:12]} Bf5 {[%emt 0:00:11]} 5. Nc3 {[%emt 0:00:10]} e6 {[%emt 0:00:10]} 6. Nh4 {[%emt 0:00:13]} Bg6 {[%emt 0:00:08]} 7. Be2 {[%emt 0:00:26]} Nbd7 {[%emt 0:00:19]} 8. O-O {[%emt 0:00:37]} Bd6 {[%emt 0:00:20]} 9. g3 {[%emt 0:00:22]} dxc4 {[%emt 0:00:47]} 10. Bxc4 {[%emt 0:00:16]} Qe7 {[%emt 0:00:29]} 11. Bd2 {[%emt 0:00:54]} Nb6 {[%emt 0:12:31]} 12. Be2 {[%emt 0:01:09]} O-O {[%emt 0:01:21]} 13. Nxg6 {[%emt 0:00:56]} hxg6 {[%emt 0:00:03]} 14. Qc2 {[%emt 0:02:51]} Rac8 {[%emt 0:01:24]} 15. Rac1 {[%emt 0:14:37]} e5 {[%emt 0:06:26]} 16. dxe5 {[%emt 0:01:38]} Bxe5 {[%emt 0:00:11]} 17. a4 {[%emt 0:11:43]} Qe6 {[%emt 0:04:53]} 18. b3 {[%emt 0:03:20]} Rfe8 {[%emt 0:09:21]} 19. Bf3 {[%emt 0:09:03]} g5 {[%emt 0:05:40]} 20. Ne4 {[%emt 0:07:26]} Nxe4 {[%emt 0:02:03]} 21. Bxe4 {[%emt 0:00:06]} g6 {[%emt 0:03:35]} 22. Bg2 {[%emt 0:02:35]} g4 {[%emt 0:02:15]} 23. a5 {[%emt 0:01:10]} Nd5 {[%emt 0:00:41]} 24. Qc4 {[%emt 0:01:49]} a6 {[%emt 0:09:19]} 25. e4 {[%emt 0:07:22]} Nc7 {[%emt 0:01:48]} 26. Be3 {[%emt 0:03:26]} Rcd8 {[%emt 0:04:04]} 27. Bb6 {[%emt 0:02:54]} Rd7 {[%emt 0:01:54]} 28. h3 {[%emt 0:02:32]} Nb5 {[%emt 0:10:48]} 29. Qxe6 {[%emt 0:02:01]} Rxe6 {[%emt 0:00:07]} 30. hxg4 {[%emt 0:02:01]} Bd4 {[%emt 0:01:01]} 31. Rfe1 {[%emt 0:06:15]} Bxb6 {[%emt 0:04:08]} 32. axb6 {[%emt 0:00:07]} Rd2 {[%emt 0:02:35]} 33. Red1 {[%emt 0:05:54]} Red6 {[%emt 0:02:07]} 34. Rxd2 {[%emt 0:00:05]} Rxd2 {[%emt 0:00:04]} 35. Bf1 {[%emt 0:00:27]} Nd4 {[%emt 0:04:54]} 36. Bxa6 {[%emt 0:03:03]} Nxb3 {[%emt 0:00:04]} 37. Rc3 {[%emt 0:04:35]} Nd4 {[%emt 0:00:42]} 38. Rd3 {[%emt 0:01:22]} Rxd3 {[%emt 0:03:07]} 39. Bxd3 {[%emt 0:00:06]} Ne6 {[%emt 0:05:17]} 40. e5 {[%emt 0:01:18]} Nc5 {[%emt 0:01:15]} 41. Bc4 {[%emt 0:05:46]} Kf8 {[%emt 0:02:17]} 42. g5 {[%emt 0:00:45]} Ke7 {[%emt 0:05:47]} 43. f4 {[%emt 0:03:37]} Nd7 {[%emt 0:00:09]} 44. Kf2 {[%emt 0:00:52]} Nxb6 {[%emt 0:00:04]} 45. Bb3 {[%emt 0:00:33]} Nd7 {[%emt 0:02:13]} 46. Ke3 {[%emt 0:01:02]} Nc5 {[%emt 0:00:05]} 47. Bd1 {[%emt 0:02:46]} Ne6 {[%emt 0:01:58]} 48. Bf3 {[%emt 0:03:08]} Kd7 {[%emt 0:01:05]} 49. Bg4 {[%emt 0:02:19]} Ke7 {[%emt 0:06:42]} 50. Bxe6 {[%emt 0:02:30]} fxe6 {[%emt 0:00:51]} 1/2-1/2